[Event "95th Caplin Hastings Congress"]
[Site "Hastings"]
[Date "2019.12.28"]
[Round "1.58"]
[White "Ruane, Brendan J"]
[Black "Damodaran, Patrick"]
[Result "1/2-1/2"]
[ECO "A05"]
[WhiteElo "1882"]
[BlackElo "1388"]
[Annotator "NA"]
[PlyCount "121"]
[EventDate "2019.12.28"]
[EventType "swiss"]
[EventCountry "ENG"]
[SourceTitle "playchess.com"]
[Source "ChessBase"]
[SourceQuality "1"]
[TimeControl "40/6600+30:3000+30"]

1. e4 {[%emt 0:09:34]} c5 {[%emt 0:11:10]} 2. Nf3 {[%emt 0:00:03]} d6 {[%emt 0:01:53]} 3. g3 {[%emt 0:00:13]} Nf6 {[%emt 0:02:36]} 4. d3 {[%emt 0:00:01]} Nc6 {[%emt 0:04:51]} 5. Bg2 {[%emt 0:00:05]} g6 {[%emt 0:04:07]} 6. c3 {[%emt 0:00:04]} Bg7 {[%emt 0:03:24]} 7. O-O {[%emt 0:00:06]} O-O {[%emt 0:07:17]} 8. Re1 {[%emt 0:00:04]} e5 {[%emt 0:01:02]} 9. h3 {[%emt 0:00:16]} Bd7 {[%emt 0:01:10]} 10. a3 {[%emt 0:00:28]} Qc8 {[%emt 0:00:45]} 11. Kh2 {[%emt 0:00:09]} Qc7 {[%emt 0:00:49]} 12. b4 {[%emt 0:00:33]} cxb4 {[%emt 0:01:00]} 13. axb4 {[%emt 0:00:03]} a6 {[%emt 0:01:26]} 14. Bb2 {[%emt 0:02:19]} h6 {[%emt 0:01:56]} 15. Nbd2 {[%emt 0:00:49]} Nh7 {[%emt 0:01:03]} 16. Nf1 {[%emt 0:12:28]} Ne7 {[%emt 0:03:41]} 17. Ne3 {[%emt 0:02:32]} f5 {[%emt 0:02:16]} 18. Nd5 {[%emt 0:05:10]} Nxd5 {[%emt 0:02:42]} 19. exd5 {[%emt 0:00:04]} Nf6 {[%emt 0:02:03]} 20. c4 {[%emt 0:02:03]} b5 {[%emt 0:01:40]} 21. Qb3 {[%emt 0:01:49]} Rfe8 {[%emt 0:01:21]} 22. c5 {[%emt 0:02:37]} e4 {[%emt 0:01:25]} 23. Nd4 {[%emt 0:01:24]} Kh7 {[%emt 0:02:06]} 24. c6 {[%emt 0:03:18]} Bc8 {[%emt 0:01:54]} 25. Nxb5 {[%emt 0:07:14]} Qb8 {[%emt 0:01:54]} 26. Nc3 {[%emt 0:07:19]} exd3 {[%emt 0:01:04]} 27. Na4 {[%emt 0:05:31]} Qb5 {[%emt 0:02:16]} 28. Bxf6 {[%emt 0:04:37]} Rxe1 {[%emt 0:00:59]} 29. Rxe1 {[%emt 0:00:09]} Bxf6 {[%emt 0:00:08]} 30. Nb2 {[%emt 0:04:30]} d2 {[%emt 0:01:06]} 31. Rd1 {[%emt 0:00:37]} Qe2 {[%emt 0:00:35]} 32. Nc4 {[%emt 0:00:30]} Qxf2 {[%emt 0:01:25]} 33. Rxd2 {[%emt 0:00:32]} Qe1 {[%emt 0:00:37]} 34. Qd1 {[%emt 0:02:07]} Qe7 {[%emt 0:00:27]} 35. Re2 {[%emt 0:00:51]} Qc7 {[%emt 0:00:30]} 36. Qe1 {[%emt 0:01:05]} f4 {[%emt 0:01:21]} 37. g4 {[%emt 0:00:48]} h5 {[%emt 0:00:49]} 38. Bf3 {[%emt 0:01:01]} hxg4 {[%emt 0:00:39]} 39. hxg4 {[%emt 0:00:10]} Rb8 {[%emt 0:01:02]} 40. Re4 {[%emt 0:02:16]} g5 {[%emt 0:00:39]} 41. Re8 {[%emt 0:53:47]} Kg7 {[%emt 0:50:49]} 42. Kg2 {[%emt 0:02:08]} Kf7 {[%emt 0:00:38]} 43. Rxc8 {[%emt 0:03:05]} Rxc8 {[%emt 0:00:39]} 44. Qe6+ {[%emt 0:00:05]} Kg7 {[%emt 0:00:25]} 45. Nxd6 {[%emt 0:00:12]} Rd8 {[%emt 0:00:36]} 46. Ne8+ {[%emt 0:01:12]} Rxe8 {[%emt 0:00:38]} 47. Qxe8 {[%emt 0:00:06]} Be5 {[%emt 0:00:33]} 48. Qa8 {[%emt 0:03:36]} Qb6 {[%emt 0:00:38]} 49. Qb7+ {[%emt 0:00:05]} Qxb7 {[%emt 0:00:15]} 50. cxb7 {[%emt 0:00:08]} Bb8 {[%emt 0:00:32]} 51. Be2 {[%emt 0:00:13]} Kf6 {[%emt 0:00:21]} 52. Bxa6 {[%emt 0:00:07]} Ke5 {[%emt 0:00:23]} 53. Bc4 {[%emt 0:00:27]} Kd4 {[%emt 0:00:22]} 54. Ba2 {[%emt 0:00:13]} Ke3 {[%emt 0:00:34]} 55. d6 {[%emt 0:00:33]} Bxd6 {[%emt 0:00:11]} 56. Bd5 {[%emt 0:00:10]} Kd4 {[%emt 0:00:25]} 57. Bc6 {[%emt 0:00:22]} Ke3 {[%emt 0:00:30]} 58. b5 {[%emt 0:00:27]} Ke2 {[%emt 0:00:11]} 59. b6 {[%emt 0:02:03]} Bb8 {[%emt 0:00:21]} 60. Bd5 {[%emt 0:02:06]} Bd6 {[%emt 0:00:17]} 61. Bc6 {[%emt 0:00:12]} 1/2-1/2

[Event "95th Caplin Hastings Congress"]
[Site "Hastings"]
[Date "2019.12.28"]
[Round "1.59"]
[White "Liu, Tianyi"]
[Black "Akeya-Price, Robert"]
[Result "0-1"]
[ECO "B12"]
[WhiteElo "1307"]
[BlackElo "1880"]
[Annotator "NA"]
[PlyCount "70"]
[EventDate "2019.12.28"]
[EventType "swiss"]
[EventCountry "ENG"]
[SourceTitle "playchess.com"]
[Source "ChessBase"]
[SourceQuality "1"]
[TimeControl "40/6600+30:3000+30"]

1. e4 {[%emt 0:09:33]} c6 {[%emt 0:09:35]} 2. d4 {[%emt 0:00:05]} d5 {[%emt 0:00:05]} 3. e5 {[%emt 0:00:04]} c5 {[%emt 0:00:07]} 4. dxc5 {[%emt 0:00:06]} e6 {[%emt 0:00:09]} 5. Be3 {[%emt 0:01:16]} Qc7 {[%emt 0:00:09]} 6. Nf3 {[%emt 0:02:41]} Bxc5 {[%emt 0:00:50]} 7. Bxc5 {[%emt 0:03:13]} Qxc5 {[%emt 0:00:08]} 8. c3 {[%emt 0:02:56]} Ne7 {[%emt 0:00:48]} 9. Be2 {[%emt 0:01:59]} Nbc6 {[%emt 0:01:56]} 10. b4 {[%emt 0:09:58]} Qb6 {[%emt 0:00:15]} 11. b5 {[%emt 0:03:22]} Nb8 {[%emt 0:00:43]} 12. Bd3 {[%emt 0:08:41]} Nd7 {[%emt 0:02:55]} 13. O-O {[%emt 0:02:02]} Ng6 {[%emt 0:01:46]} 14. Re1 {[%emt 0:03:53]} O-O {[%emt 0:01:08]} 15. Qc2 {[%emt 0:14:54]} Nc5 {[%emt 0:04:00]} 16. a4 {[%emt 0:08:01]} Nxd3 {[%emt 0:02:25]} 17. Qxd3 {[%emt 0:00:16]} a6 {[%emt 0:00:10]} 18. Nbd2 {[%emt 0:02:41]} Bd7 {[%emt 0:07:16]} 19. c4 {[%emt 0:08:22]} axb5 {[%emt 0:01:26]} 20. cxb5 {[%emt 0:08:20]} Rfc8 {[%emt 0:01:12]} 21. Qb3 {[%emt 0:03:53]} Qa5 {[%emt 0:02:51]} 22. Reb1 {[%emt 0:05:27]} Rc3 {[%emt 0:03:15]} 23. Qb4 {[%emt 0:01:01]} Rc1+ {[%emt 0:00:21]} 24. Rxc1 {[%emt 0:03:38]} Qxb4 {[%emt 0:00:07]} 25. Rc7 {[%emt 0:00:16]} Bxb5 {[%emt 0:06:25]} 26. Rxb7 {[%emt 0:00:47]} Qc3 {[%emt 0:01:13]} 27. Rb1 {[%emt 0:01:12]} Bxa4 {[%emt 0:00:26]} 28. Nf1 {[%emt 0:00:52]} h6 {[%emt 0:00:51]} 29. R7b2 {[%emt 0:01:50]} Bc2 {[%emt 0:01:13]} 30. Rb8+ {[%emt 0:00:05]} Rxb8 {[%emt 0:00:04]} 31. Rxb8+ {[%emt 0:00:10]} Kh7 {[%emt 0:00:05]} 32. Rb7 {[%emt 0:00:07]} Nxe5 {[%emt 0:00:23]} 33. Nxe5 {[%emt 0:00:04]} Qxe5 {[%emt 0:00:10]} 34. Rxf7 {[%emt 0:00:03]} Qe1 {[%emt 0:00:14]} 35. Rf3 {[%emt 0:00:33]} Bd1 {[%emt 0:00:20]} 0-1

[Event "95th Caplin Hastings Congress"]
[Site "Hastings"]
[Date "2019.12.28"]
[Round "1.60"]
[White "Metcalfe, Charlie P"]
[Black "Thatte, Nandinee"]
[Result "1-0"]
[ECO "E92"]
[WhiteElo "1867"]
[BlackElo "1270"]
[Annotator "NA"]
[PlyCount "49"]
[EventDate "2019.12.28"]
[EventType "swiss"]
[EventCountry "ENG"]
[SourceTitle "playchess.com"]
[Source "ChessBase"]
[SourceQuality "1"]
[TimeControl "40/6600+30:3000+30"]

1. d4 {[%emt 0:05:24]} Nf6 {[%emt 0:00:06]} 2. c4 {[%emt 0:00:01]} g6 {[%emt 0:00:06]} 3. Nc3 {[%emt 0:00:03]} Bg7 {[%emt 0:00:04]} 4. e4 {[%emt 0:00:03]} d6 {[%emt 0:00:11]} 5. Nf3 {[%emt 0:00:03]} O-O {[%emt 0:00:07]} 6. Be2 {[%emt 0:00:02]} e5 {[%emt 0:00:11]} 7. Be3 {[%emt 0:00:04]} Ng4 {[%emt 0:00:15]} 8. Bg5 {[%emt 0:00:01]} f6 {[%emt 0:00:12]} 9. Bh4 {[%emt 0:00:01]} g5 {[%emt 0:00:14]} 10. Bg3 Nh6 {[%emt 0:00:25]} 11. c5 {[%emt 0:00:11]} Nc6 {[%emt 0:00:40]} 12. cxd6 {[%emt 0:00:07]} cxd6 {[%emt 0:00:07]} 13. dxe5 {[%emt 0:00:07]} dxe5 {[%emt 0:00:48]} 14. Bc4+ {[%emt 0:00:14]} Kh8 {[%emt 0:01:14]} 15. Qxd8 {[%emt 0:00:07]} Rxd8 {[%emt 0:00:16]} 16. h3 {[%emt 0:11:15]} b6 {[%emt 0:04:01]} 17. Bd5 {[%emt 0:13:22]} Bb7 {[%emt 0:00:45]} 18. O-O {[%emt 0:18:08]} Ng8 {[%emt 0:02:55]} 19. Rfd1 {[%emt 0:15:08]} Na5 {[%emt 0:15:27]} 20. b4 {[%emt 0:14:49]} Nc6 {[%emt 0:05:29]} 21. Nb5 {[%emt 0:07:41]} Rd7 {[%emt 0:05:51]} 22. Be6 {[%emt 0:03:55]} Re7 {[%emt 0:03:44]} 23. Nd6 {[%emt 0:02:19]} h5 {[%emt 0:03:16]} 24. Nf7+ {[%emt 0:00:17]} Kh7 {[%emt 0:00:35]} 25. Bf5# {[%emt 0:00:03]} 1-0

[Event "95th Caplin Hastings Congress"]
[Site "Hastings"]
[Date "2019.12.29"]
[Round "2.1"]
[White "Cherniaev, Alexander"]
[Black "Howell, David W L"]
[Result "0-1"]
[ECO "A35"]
[WhiteElo "2419"]
[BlackElo "2676"]
[Annotator "RC"]
[PlyCount "76"]
[EventDate "2019.12.28"]
[EventType "swiss"]
[EventCountry "ENG"]
[SourceTitle "playchess.com"]
[Source "ChessBase"]
[SourceQuality "1"]
[TimeControl "40/6600+30:3000+30"]

1. e4 {[%emt 0:18:27]} c6 {[%emt 0:10:04]} 2. c4 {[%emt 0:00:22]} d5 {[%emt 0:00:16]} 3. cxd5 {[%emt 0:00:20]} cxd5 {[%emt 0:00:11]} 4. exd5 {[%emt 0:00:05]} Nf6 {[%emt 0:00:09]} 5. Nc3 {[%emt 0:00:06]} Nxd5 {[%emt 0:00:43]} 6. Nf3 {[%emt 0:00:22]} Nc6 {[%emt 0:11:11]} 7. d4 {[%emt 0:08:21]} g6 {[%emt 0:01:13]} 8. Qb3 {[%emt 0:04:10]} Nxc3 {[%emt 0:01:14]} 9. Bc4 {[%emt 0:00:31]} Nd5 {[%emt 0:00:55]} 10. Bxd5 {[%emt 0:00:08]} e6 {[%emt 0:00:07]} 11. Bxc6+ {[%emt 0:00:30]} bxc6 {[%emt 0:00:10]} 12. O-O {[%emt 0:01:45]} f6 {[%emt 0:00:06]} 13. Be3 {[%emt 0:02:34]} Qd5 {[%emt 0:00:45]} 14. Nd2 {[%emt 0:02:05]} Be7 {[%emt 0:06:29]} 15. Rfc1 {[%emt 0:00:34]} Kf7 {[%emt 0:00:49]} 16. Qc2 {[%emt 0:13:29]} Bb7 {[%emt 0:25:03]} 17. f3 {[%emt 0:00:40]} g5 {[%emt 0:13:21]} 18. Ne4 {[%emt 0:06:22]} h5 {[%emt 0:00:31]} 19. Nc5 {[%emt 0:00:26]} Bc8 {[%emt 0:04:42]} 20. Qb3 {[%emt 0:23:43]} g4 {[%emt 0:09:37]} 21. Qxd5 {[%emt 0:02:33]} cxd5 {[%emt 0:00:13]} 22. Bf4 {[%emt 0:00:09]} gxf3 {[%emt 0:02:58]} 23. gxf3 {[%emt 0:00:11]} Kg6 {[%emt 0:00:24]} 24. b4 {[%emt 0:04:21]} e5 {[%emt 0:06:41]} 25. Be3 {[%emt 0:01:04]} Bd6 {[%emt 0:04:03]} 26. b5 {[%emt 0:02:04]} Kf7 {[%emt 0:03:30]} 27. Nd3 {[%emt 0:05:13]} Bh3 {[%emt 0:17:32]} 28. Kf2 {[%emt 0:00:19]} Rhg8 {[%emt 0:00:06]} 29. Rg1 {[%emt 0:00:06]} Bf5 {[%emt 0:00:45]} 30. Rxg8 {[%emt 0:01:15]} Rxg8 {[%emt 0:00:20]} 31. Rd1 {[%emt 0:01:27]} e4 {[%emt 0:00:46]} 32. Bf4 {[%emt 0:02:31]} Ba3 {[%emt 0:00:19]} 33. fxe4 {[%emt 0:11:28]} Bxe4 {[%emt 0:00:02]} 34. Ke3 {[%emt 0:03:58]} Bf5 {[%emt 0:01:13]} 35. Rb1 {[%emt 0:02:24]} Re8+ {[%emt 0:00:30]} 36. Kd2 {[%emt 0:00:08]} Bg4 {[%emt 0:00:12]} 37. Rb3 {[%emt 0:00:38]} Re2+ {[%emt 0:00:10]} 38. Kc3 {[%emt 0:01:09]} Rxa2 {[%emt 0:00:02]} 0-1

[Event "95th Caplin Hastings Congress"]
[Site "Hastings"]
[Date "2019.12.29"]
[Round "2.3"]
[White "Vaishali R"]
[Black "Van den Doel, Erik"]
[Result "0-1"]
[ECO "A12"]
[WhiteElo "2376"]
[BlackElo "2589"]
[Annotator "RC"]
[PlyCount "64"]
[EventDate "2019.12.28"]
[EventType "swiss"]
[EventCountry "ENG"]
[SourceTitle "playchess.com"]
[Source "ChessBase"]
[SourceQuality "1"]
[TimeControl "40/6600+30:3000+30"]

1. Nf3 {[%emt 0:10:06]} d5 {[%emt 0:10:23]} 2. e3 {[%emt 0:00:07]} Nf6 {[%emt 0:03:34]} 3. c4 {[%emt 0:00:11]} c6 {[%emt 0:01:23]} 4. b3 {[%emt 0:00:18]} Bf5 {[%emt 0:01:27]} 5. Bb2 {[%emt 0:00:13]} e6 {[%emt 0:00:42]} 6. Be2 {[%emt 0:00:34]} h6 {[%emt 0:02:32]} 7. O-O {[%emt 0:01:31]} Nbd7 {[%emt 0:02:11]} 8. d3 {[%emt 0:02:48]} Be7 {[%emt 0:01:08]} 9. Nc3 {[%emt 0:09:10]} O-O {[%emt 0:01:01]} 10. Re1 {[%emt 0:05:31]} Bg6 {[%emt 0:05:12]} 11. Rc1 {[%emt 0:05:32]} Re8 {[%emt 0:04:56]} 12. Rc2 {[%emt 0:16:38]} a6 {[%emt 0:09:49]} 13. Rd2 {[%emt 0:10:11]} Bd6 {[%emt 0:00:24]} 14. a3 {[%emt 0:04:57]} e5 {[%emt 0:05:00]} 15. b4 {[%emt 0:01:13]} Qe7 {[%emt 0:06:53]} 16. cxd5 {[%emt 0:09:46]} cxd5 {[%emt 0:01:55]} 17. Qb3 {[%emt 0:00:58]} Nb6 {[%emt 0:08:31]} 18. d4 {[%emt 0:06:45]} exd4 {[%emt 0:09:13]} 19. Rxd4 {[%emt 0:01:05]} Bf5 {[%emt 0:01:44]} 20. Red1 {[%emt 0:05:36]} Rac8 {[%emt 0:00:21]} 21. a4 {[%emt 0:02:55]} Be6 {[%emt 0:01:28]} 22. a5 {[%emt 0:06:57]} Nbd7 {[%emt 0:04:19]} 23. Qa4 {[%emt 0:13:32]} Rc7 {[%emt 0:07:08]} 24. e4 {[%emt 0:03:01]} Ne5 {[%emt 0:18:15]} 25. Qa1 {[%emt 0:02:18]} Nc6 {[%emt 0:02:33]} 26. R4d2 {[%emt 0:00:35]} dxe4 {[%emt 0:01:19]} 27. Rxd6 {[%emt 0:00:17]} exf3 {[%emt 0:00:04]} 28. Bxf3 {[%emt 0:00:05]} Bb3 {[%emt 0:00:30]} 29. b5 {[%emt 0:01:05]} Bxd1 {[%emt 0:01:08]} 30. Rxd1 {[%emt 0:00:05]} Nd4 {[%emt 0:00:15]} 31. Bd5 {[%emt 0:00:55]} Rxc3 {[%emt 0:01:10]} 32. Bxc3 {[%emt 0:00:14]} Ne2+ {[%emt 0:00:04]} 0-1

[Event "95th Caplin Hastings Congress"]
[Site "Hastings"]
[Date "2019.12.29"]
[Round "2.4"]
[White "Sengupta, Deep"]
[Black "Merry, Alan B"]
[Result "1-0"]
[ECO "C18"]
[WhiteElo "2564"]
[BlackElo "2420"]
[Annotator "ChessBase"]
[PlyCount "175"]
[EventDate "2019.12.28"]
[EventType "swiss"]
[EventCountry "ENG"]
[SourceTitle "playchess.com"]
[Source "ChessBase"]
[SourceQuality "1"]
[TimeControl "40/6600+30:3000+30"]

1. e4 {[%emt 0:09:33]} e6 {[%emt 0:09:32]} 2. d4 {[%emt 0:00:08]} d5 {[%emt 0:00:03]} 3. Nc3 {[%emt 0:00:08]} Bb4 {[%emt 0:00:04]} 4. e5 {[%emt 0:00:06]} c5 {[%emt 0:00:01]} 5. a3 {[%emt 0:00:07]} Bxc3+ {[%emt 0:00:03]} 6. bxc3 {[%emt 0:00:06]} Qa5 {[%emt 0:00:03]} 7. Bd2 {[%emt 0:00:06]} Qa4 {[%emt 0:00:03]} 8. h4 {[%emt 0:00:35]} Nc6 {[%emt 0:00:54]} 9. h5 {[%emt 0:00:05]} h6 {[%emt 0:02:35]} 10. Qg4 {[%emt 0:00:41]} Rh7 {[%emt 0:03:42]} 11. Qf4 {[%emt 0:01:27]} c4 {[%emt 0:01:47]} 12. Kd1 {[%emt 0:21:05]} Bd7 {[%emt 0:05:56]} 13. Qh4 {[%emt 0:09:06]} f6 {[%emt 0:05:58]} 14. f4 {[%emt 0:00:05]} O-O-O {[%emt 0:00:54]} 15. Nf3 {[%emt 0:00:04]} Rf8 {[%emt 0:03:39]} 16. Be2 {[%emt 0:00:36]} Nge7 {[%emt 0:01:15]} 17. Rf1 {[%emt 0:02:33]} Kb8 {[%emt 0:05:44]} 18. Qh3 {[%emt 0:01:38]} Ka8 {[%emt 0:03:37]} 19. Be3 {[%emt 0:04:06]} Qa5 {[%emt 0:04:03]} 20. Kd2 {[%emt 0:01:47]} Rhh8 {[%emt 0:01:18]} 21. Nh4 {[%emt 0:06:36]} Rhg8 {[%emt 0:01:36]} 22. Bg4 {[%emt 0:05:37]} fxe5 {[%emt 0:22:10]} 23. fxe5 {[%emt 0:00:50]} Nd8 {[%emt 0:07:43]} 24. Rxf8 {[%emt 0:04:43]} Rxf8 {[%emt 0:00:04]} 25. Be2 {[%emt 0:00:11]} Qb6 {[%emt 0:09:22]} 26. Qg3 {[%emt 0:04:17]} Rg8 {[%emt 0:05:05]} 27. Qe1 {[%emt 0:07:32]} Be8 {[%emt 0:05:44]} 28. g4 {[%emt 0:01:59]} a6 {[%emt 0:06:03]} 29. Qb1 {[%emt 0:02:31]} Qc7 {[%emt 0:00:24]} 30. Qb2 {[%emt 0:04:53]} Nf7 {[%emt 0:04:14]} 31. Rf1 {[%emt 0:01:26]} Qd8 {[%emt 0:01:07]} 32. Rb1 {[%emt 0:01:56]} Bc6 {[%emt 0:00:53]} 33. Qb6 {[%emt 0:01:19]} Qd7 {[%emt 0:01:33]} 34. Rf1 {[%emt 0:03:14]} Nc8 {[%emt 0:00:33]} 35. Qb4 {[%emt 0:02:16]} b6 {[%emt 0:00:52]} 36. Ng6 {[%emt 0:02:55]} a5 {[%emt 0:00:25]} 37. Qb1 {[%emt 0:00:06]} Nh8 {[%emt 0:00:39]} 38. g5 {[%emt 0:02:23]} hxg5 {[%emt 0:05:30]} 39. Bxg5 {[%emt 0:00:03]} Qe8 {[%emt 0:03:31]} 40. Nh4 {[%emt 0:01:02]} Ka7 {[%emt 0:00:34]} 41. Rf2 {[%emt 0:52:01]} Nf7 {[%emt 0:05:24]} 42. Qg1 {[%emt 0:00:00]} Nxg5 {[%emt 0:07:09]} 43. Qxg5 {[%emt 0:00:00]} Ne7 {[%emt 0:03:43]} 44. Bg4 {[%emt 0:00:00]} Bd7 {[%emt 0:00:26]} 45. Rf3 {[%emt 0:00:00]} Ka6 {[%emt 0:01:37]} 46. Ng6 {[%emt 0:00:00]} Nc6 {[%emt 0:10:45]} 47. Qf4 {[%emt 0:00:00]} Nd8 {[%emt 0:00:07]} 48. Rf2 {[%emt 0:00:00]} Bc8 {[%emt 0:04:20]} 49. Bh3 {[%emt 0:00:00]} Bd7 {[%emt 0:01:01]} 50. Rf3 {[%emt 0:00:00]} Bc8 {[%emt 0:00:46]} 51. Qh4 {[%emt 0:00:00]} Nc6 {[%emt 0:00:10]} 52. Kc1 {[%emt 0:00:00]} Bd7 {[%emt 0:00:38]} 53. Bf1 {[%emt 0:00:00]} Bc8 {[%emt 0:00:28]} 54. Be2 {[%emt 0:00:00]} Bd7 {[%emt 0:00:29]} 55. Rf4 {[%emt 0:00:00]} Bc8 {[%emt 0:00:21]} 56. Kd1 {[%emt 0:00:00]} Bd7 {[%emt 0:00:11]} 57. Ke1 {[%emt 0:00:00]} Bc8 {[%emt 0:00:35]} 58. Kf2 {[%emt 0:00:00]} Bd7 {[%emt 0:00:32]} 59. Kg2 {[%emt 0:00:00]} Kb5 {[%emt 0:04:10]} 60. Rf1 {[%emt 0:00:00]} Bc8 {[%emt 0:00:40]} 61. Bg4 {[%emt 0:00:00]} Bd7 {[%emt 0:01:55]} 62. Kh3 {[%emt 0:00:00]} Bc8 {[%emt 0:00:58]} 63. Qg5 {[%emt 0:03:27]} Bd7 {[%emt 0:00:18]} 64. Kg3 {[%emt 0:02:40]} Bc8 {[%emt 0:00:14]} 65. Qc1 {[%emt 0:00:35]} Bd7 {[%emt 0:00:45]} 66. a4+ {[%emt 0:12:20]} Ka6 {[%emt 0:00:05]} 67. Qa3 {[%emt 0:00:01]} Nd8 {[%emt 0:04:42]} 68. Qd6 {[%emt 0:00:40]} Bxa4 {[%emt 0:02:29]} 69. Ne7 {[%emt 0:01:11]} Rh8 {[%emt 0:02:40]} 70. Ng6 {[%emt 0:00:15]} Rg8 {[%emt 0:00:10]} 71. Ne7 {[%emt 0:04:19]} Rh8 {[%emt 0:00:09]} 72. Rb1 {[%emt 0:00:08]} Nc6 {[%emt 0:01:17]} 73. Qc7 {[%emt 0:02:22]} Bb5 {[%emt 0:02:24]} 74. Ng6 {[%emt 0:04:32]} Rg8 {[%emt 0:00:17]} 75. Nf4 {[%emt 0:00:25]} Nd8 {[%emt 0:04:20]} 76. Nxd5 {[%emt 0:01:03]} Qc6 {[%emt 0:01:21]} 77. Qxc6 {[%emt 0:00:56]} Bxc6 {[%emt 0:00:05]} 78. Nxb6 {[%emt 0:00:33]} g6 {[%emt 0:01:06]} 79. h6 {[%emt 0:00:33]} Rh8 {[%emt 0:00:26]} 80. Nxc4 {[%emt 0:00:51]} Rxh6 {[%emt 0:00:24]} 81. Bxe6 {[%emt 0:01:10]} a4 {[%emt 0:00:54]} 82. d5 {[%emt 0:00:27]} g5 {[%emt 0:00:33]} 83. Bc8+ {[%emt 0:00:17]} Bb7 {[%emt 0:00:04]} 84. Bxb7+ {[%emt 0:00:08]} Nxb7 {[%emt 0:00:04]} 85. e6 {[%emt 0:00:08]} Rh4 {[%emt 0:00:20]} 86. e7 {[%emt 0:00:41]} Re4 {[%emt 0:00:08]} 87. Rb6+ {[%emt 0:00:05]} Ka7 {[%emt 0:00:17]} 88. Rxb7+ {[%emt 0:00:15]} 1-0

[Event "95th Caplin Hastings Congress"]
[Site "Hastings"]
[Date "2019.12.29"]
[Round "2.6"]
[White "Willow, Jonah B"]
[Black "Korneev, Oleg"]
[Result "1/2-1/2"]
[ECO "B42"]
[WhiteElo "2355"]
[BlackElo "2524"]
[Annotator "ChessBase"]
[PlyCount "127"]
[EventDate "2019.12.28"]
[EventType "swiss"]
[EventCountry "ENG"]
[SourceTitle "playchess.com"]
[Source "ChessBase"]
[SourceQuality "1"]
[TimeControl "40/6600+30:3000+30"]

1. e4 {[%emt 0:09:32]} c5 {[%emt 0:22:44]} 2. Nf3 {[%emt 0:00:12]} e6 {[%emt 0:00:06]} 3. d4 {[%emt 0:00:04]} cxd4 {[%emt 0:00:02]} 4. Nxd4 {[%emt 0:00:05]} a6 {[%emt 0:00:02]} 5. Bd3 {[%emt 0:00:18]} Nf6 {[%emt 0:03:53]} 6. O-O {[%emt 0:00:12]} Qc7 {[%emt 0:00:04]} 7. Qe2 {[%emt 0:00:05]} d6 {[%emt 0:00:02]} 8. c4 {[%emt 0:00:19]} g6 {[%emt 0:08:30]} 9. Be3 {[%emt 0:03:57]} Bg7 {[%emt 0:00:02]} 10. Nd2 {[%emt 0:02:55]} O-O {[%emt 0:00:20]} 11. Rfc1 {[%emt 0:00:58]} Nc6 {[%emt 0:09:01]} 12. Nxc6 {[%emt 0:08:31]} bxc6 {[%emt 0:01:13]} 13. Rab1 {[%emt 0:04:35]} a5 {[%emt 0:01:20]} 14. f4 {[%emt 0:14:57]} c5 {[%emt 0:01:35]} 15. Nf3 {[%emt 0:04:18]} Bb7 {[%emt 0:00:47]} 16. Bd2 {[%emt 0:01:19]} Rfe8 {[%emt 0:06:15]} 17. Bc3 {[%emt 0:19:00]} e5 {[%emt 0:15:38]} 18. fxe5 {[%emt 0:01:30]} dxe5 {[%emt 0:00:11]} 19. Nd2 {[%emt 0:00:14]} Nh5 {[%emt 0:00:59]} 20. g3 {[%emt 0:01:11]} Bh6 {[%emt 0:00:14]} 21. Re1 {[%emt 0:01:39]} Ng7 {[%emt 0:00:15]} 22. Nf1 {[%emt 0:03:12]} Ne6 {[%emt 0:00:17]} 23. Ne3 {[%emt 0:01:13]} Nd4 {[%emt 0:14:13]} 24. Bxd4 {[%emt 0:08:10]} exd4 {[%emt 0:01:38]} 25. Nd5 {[%emt 0:00:17]} Bxd5 {[%emt 0:00:41]} 26. cxd5 {[%emt 0:00:01]} f5 {[%emt 0:14:52]} 27. Kg2 {[%emt 0:01:50]} fxe4 {[%emt 0:00:09]} 28. Bxe4 {[%emt 0:00:05]} Qd6 {[%emt 0:00:11]} 29. Qd3 {[%emt 0:05:34]} Be3 {[%emt 0:01:19]} 30. Bf3 {[%emt 0:00:22]} a4 {[%emt 0:05:27]} 31. Qb5 {[%emt 0:02:04]} Reb8 {[%emt 0:04:03]} 32. Qc6 {[%emt 0:00:48]} Ra6 {[%emt 0:00:06]} 33. Qxd6 {[%emt 0:00:22]} Rxd6 {[%emt 0:00:02]} 34. b3 {[%emt 0:08:42]} axb3 {[%emt 0:03:02]} 35. axb3 {[%emt 0:02:50]} Rdb6 {[%emt 0:00:05]} 36. Be2 {[%emt 0:07:46]} Rxb3 {[%emt 0:00:50]} 37. Rxb3 {[%emt 0:00:06]} Rxb3 {[%emt 0:00:02]} 38. d6 {[%emt 0:00:06]} Rb6 {[%emt 0:05:42]} 39. d7 {[%emt 0:00:45]} Rd6 {[%emt 0:00:01]} 40. Bb5 {[%emt 0:00:27]} Kg7 {[%emt 0:01:30]} 41. h4 {[%emt 0:56:31]} c4 {[%emt 0:06:01]} 42. Bxc4 {[%emt 0:00:00]} Rxd7 {[%emt 0:00:06]} 43. Bd3 {[%emt 0:00:00]} Ra7 {[%emt 0:00:32]} 44. Rf1 {[%emt 0:00:00]} Ra3 {[%emt 0:04:15]} 45. Rd1 {[%emt 0:00:00]} Ra2+ {[%emt 0:01:47]} 46. Kf3 {[%emt 0:00:00]} Rf2+ {[%emt 0:00:10]} 47. Ke4 {[%emt 0:00:00]} Kh6 {[%emt 0:11:41]} 48. Rf1 {[%emt 0:00:00]} Rg2 {[%emt 0:00:09]} 49. Kf3 {[%emt 0:00:00]} Rd2 {[%emt 0:00:05]} 50. Bc4 {[%emt 0:00:00]} Rc2 {[%emt 0:03:03]} 51. Bd3 {[%emt 0:00:00]} Rh2 {[%emt 0:00:36]} 52. Be2 {[%emt 0:00:00]} Kg7 {[%emt 0:00:18]} 53. Bd3 {[%emt 0:00:00]} h5 {[%emt 0:02:42]} 54. Be2 {[%emt 0:00:00]} Kh6 {[%emt 0:02:06]} 55. Bd3 {[%emt 0:00:00]} Rd2 {[%emt 0:00:20]} 56. Bc4 {[%emt 0:00:00]} Kg7 {[%emt 0:00:31]} 57. Ke4 {[%emt 0:00:00]} Bf2 {[%emt 0:00:49]} 58. Kf3 {[%emt 0:00:00]} Rc2 {[%emt 0:00:31]} 59. Rxf2 {[%emt 0:00:00]} Rxc4 {[%emt 0:00:12]} 60. Ke4 {[%emt 0:00:00]} g5 {[%emt 0:07:26]} 61. Rf5 {[%emt 0:00:00]} gxh4 {[%emt 0:00:07]} 62. Rxh5 {[%emt 0:00:00]} hxg3 {[%emt 0:00:09]} 63. Rg5+ {[%emt 0:00:00]} Kf6 {[%emt 0:00:07]} 64. Rxg3 {[%emt 0:00:00] Ke5+} 1/2-1/2